Workbook

Sheet Data_Resultaat Sensitivity (hidden)
A1: OpenSolver Sensitivity Report - CBC
A2: Worksheet: [Routeplanner_demoVeetournee.xlsm] Data_Resultaat Sensitivity
A3: Report Created: 13/07/2018 10:40:08
A5: Decision Variables
B6: Cells | C6: Name | D6: Final Value | E6: Reduced Costs | F6: Objective Value | G6: Allowable Increase | H6: Allowable Decrease
B7: P3 | C7: Variabelen Aantal melkkoeien | D7: 110 | E7: 0 | F7: 1870 | G7: 18.8574464 | H7: 438.9203316
B8: Q3 | C8: Variabelen Aantal extra stalplaatsen melkkoeien | D8: 0 | E8: -18.857446 | F8: -457.7777778 | G8: 18.85744635 | H8: 1e+100
B9: R3 | C9: Variabelen Aantal extra stalplaatsen jongvee | D9: 0 | E9: -143.05556 | F9: -143.0555556 | G9: 143.0555556 | H9: 1e+100
B10: S3 | C10: Variabelen Aantal verkochte stierkalveren | D10: 44.010577 | E10: 0 | F10: 100 | G10: 47.13228612 | H10: 1097.037118
B11: T3 | C11: Variabelen Aantal verkochte vaarskalveren | D11: 23.484583 | E11: 0 | F11: 100 | G11: 88.32684541 | H11: 1278.648903
B12: U3 | C12: Variabelen Aantal jongvee 14 dagen naar eigen opfok | D12: 20.656535 | E12: 0 | F12: 0 | G12: 123.9189889 | H12: 11.39464216
B13: V3 | C13: Variabelen Aantal jongvee 14 dagen bestemd voor externe opfok | D13: 9.6495872 | E13: 0 | F13: 0 | G13: 9.768420171 | H13: 72.26988912
B14: W3 | C14: Variabelen Aantal jongvee die vertrekken naar externe opfok | D14: 9.6024114 | E14: 0 | F14: 0 | G14: 9.816411516 | H14: 72.6249444
B15: X3 | C15: Variabelen Aantal jongvee die terugkeren uit externe opfok | D15: 9.4658438 | E15: 0 | F15: 0 | G15: 9.958036931 | H15: 73.6727344
B16: Y3 | C16: Variabelen GAD tot 1 jaar | D16: 27.957403 | E16: 0 | F16: -225 | G16: 249.668883 | H16: 28.55249216
B17: Z3 | C17: Variabelen GAD tussen 1 en 2 jaar | D17: 19.438442 | E17: 0 | F17: -225 | G17: 150.9089998 | H17: 14.11018172
B18: AA3 | C18: Variabelen GAD jongvee boven 2 jaar | D18: 0 | E18: -957.48547 | F18: -225 | G18: 957.4854652 | H18: 1e+100
B19: AB3 | C19: Variabelen GAD elders opgefokt | D19: 12.71217 | E19: 0 | F19: -660 | G19: 7.415037795 | H19: 54.85881543
B20: AC3 | C20: Variabelen Aantal aangekochte vaarzen | D20: 0 | E20: -95.256222 | F20: -1400 | G20: 95.25622223 | H20: 1e+100
B21: AD3 | C21: Variabelen Oppervlakte mais | D21: 30.579357 | E21: 0 | F21: -1000 | G21: 954.2123742 | H21: 182.2959297
B22: AE3 | C22: Variabelen Oppervlakte gras | D22: 0 | E22: -166.66667 | F22: -790 | G22: 166.6666667 | H22: 1e+100
B23: AF3 | C23: Variabelen Oppervlakte mais_derogatie | D23: 0 | E23: -151.56123 | F23: -1400 | G23: 151.5612263 | H23: 1e+100
B24: AG3 | C24: Variabelen Oppervlakte gras_derogatie | D24: 19.420643 | E24: 0 | F24: -790 | G24: 1028.571122 | H24: 166.6666669
B25: AH3 | C25: Variabelen Te pachten grond | D25: 0 | E25: -530.53093 | F25: -1000 | G25: 530.5309305 | H25: 1e+100
B26: AI3 | C26: Variabelen Mestoverschot | D26: 294.66044 | E26: 0 | F26: -10 | G26: 3.631905186 | H26: 3.130733666
B27: AJ3 | C27: Variabelen Aantal reforme koeien | D27: 29.7 | E27: 0 | F27: 700 | G27: 69.84239407 | H27: 700.0000004
B28: AK3 | C28: Variabelen Aankoop mais | D28: 0 | E28: -456.6976 | F28: -1700 | G28: 456.6975964 | H28: 1e+100
B29: AL3 | C29: Variabelen Aantal aangekochte NERs | D29: 0 | E29: -0.8034 | F29: -0.8034 | G29: 0.8034 | H29: 1e+100
B30: AM3 | C30: Variabelen Eigen arbeid | D30: 3000 | E30: 0 | F30: -10.51 | G30: 1e+100 | H30: 5.49000014
B31: AN3 | C31: Variabelen Externe arbeid | D31: 2232.7154 | E31: 0 | F31: -16.0000001 | G31: 0.7536417625 | H31: 2.556778433
B32: AO3 | C32: Variabelen Oppervlakte burenregeling | D32: 5 | E32: 0 | F32: -125 | G32: 1e+100 | H32: 229.1666669
B33: AP3 | C33: Variabelen Opervlakte overige mestafzet | D33: 5 | E33: 0 | F33: 0 | G33: 115.302403 | H33: 354.1666668
A35: Constraints
B36: Cells | C36: Name | D36: Final Value | E36: Shadow Price | F36: RHS Value | G36: Allowable Increase | H36: Allowable Decrease
B37: AQ7<=AS7 | C37: Aantal melkkoeien | D37: -110 | E37: 0 | F37: 0 | G37: 1e+100 | H37: 110
B38: AQ8<=AS8 | C38: Stalplaatsen melkkoeien | D38: 110 | E38: 438.92033 | F38: 110 | G38: 12.4817445 | H38: 4.998620703
B39: AQ9<=AS9 | C39: Stalplaatsen jongvee | D39: 47.395845 | E39: 0 | F39: 170 | G39: 1e+100 | H39: 122.6041551
B40: AQ10<=AS10 | C40: Totaal aantal koeien < Totaal aantal stalplaatsen | D40: 157.39584 | E40: 0 | F40: 170 | G40: 1e+100 | H40: 12.60415505
B41: AQ11<=AS11 | C41: Maximaal aantal extra stalplaatsen | D41: 0 | E41: 0 | F41: 100 | G41: 1e+100 | H41: 100
B42: AQ12=AS12 | C42: Aantal stierkalveren | D42: 0 | E42: 79.222154 | F42: 0 | G42: 855.8395427 | H42: 44.01057692
B43: AQ13=AS13 | C43: Aantal vaarskalveren | D43: 0 | E43: 79.222154 | F43: 0 | G43: 855.8395427 | H43: 23.48458268
B44: AQ14<=AS14 | C44: Transferrij jongvee externe opfok | D44: 0 | E44: 933.80001 | F44: 0 | G44: 8.920746439 | H44: 83.98035993
B45: AQ15<=AS15 | C45: Transferrij 2 jongvee externe opfok | D45: 0 | E45: 60.924267 | F45: 0 | G45: 8.793873601 | H45: 265.1784912
B46: AQ16<=AS16 | C46: Gemiddeld aanwezige dieren tot 1 jaar | D46: 0 | E46: 541.70814 | F46: 0 | G46: 20.63693693 | H46: 32.82672218
B47: AQ17<=AS17 | C47: Gemiddeld aanwezige dieren tussen 1 en 2j | D47: 0 | E47: 731.41628 | F47: 0 | G47: 10.31846846 | H47: 22.08838617
B48: AQ18<=AS18 | C48: Gemiddeld aanwezige dieren boven 2j | D48: 0 | E48: 0 | F48: 0 | G48: 1e+100 | H48: 0
B49: AQ19<=AS19 | C49: Gemiddeld aanwezige dieren externe opfok | D49: 0 | E49: 660 | F49: 0 | G49: 12.71217013 | H49: 1e+100
B50: AQ20<=AS20 | C50: Maximaal aantal externe opfok | D50: 9.6024114 | E50: 0 | F50: 100 | G50: 1e+100 | H50: 90.39758859
B51: AQ21<=AS21 | C51: Minimaal aantal externe opfok | D51: -9.6024114 | E51: 0 | F51: 0 | G51: 1e+100 | H51: 9.602411412
B52: AQ22<=AS22 | C52: Minimaal aantal eigen opfok | D52: -20.656535 | E52: 0 | F52: 0 | G52: 1e+100 | H52: 20.65653528
B53: AQ23<=AS23 | C53: Aantal melkkoeien contstant houden | D53: 0 | E53: 1304.7438 | F53: 0 | G53: 7.321039799 | H53: 23.01489103
B54: AQ24<=AS24 | C54: Verkoop reforme melkkoeien | D54: 0 | E54: 700 | F54: 0 | G54: 1e+100 | H54: 29.7
B55: AQ25<=AS25 | C55: Droge stof gras | D55: 50000 | E55: 0.097863574 | F55: 50000 | G55: 25958.38106 | H55: 55080.97831
B56: AQ26<=AS26 | C56: Droge stof mais | D56: 0 | E56: 0.082886827 | F56: 0 | G56: 38937.57158 | H56: 84073.25722
B57: AQ27<=AS27 | C57: Te pachten oppervlakte | D57: 50 | E57: 115.3024 | F57: 50 | G57: 2.595838106 | H57: 5.604883814
B58: AQ28<=AS28 | C58: Maximale aankoop mais | D58: 0 | E58: 0 | F58: 30 | G58: 1e+100 | H58: 30
B59: AQ29<=AS29 | C59: Maximale gepachte oppervlakte | D59: 0 | E59: 0 | F59: 30 | G59: 1e+100 | H59: 30
B60: AQ30<=AS30 | C60: N-overschot | D60: 1250 | E60: 2.0833333 | F60: 1250 | G60: 1414.37013 | H60: 1e+100
B61: AQ31<=AS31 | C61: Aankoop NERs | D61: 16591.175 | E61: 0 | F61: 17500 | G61: 1e+100 | H61: 908.8254047
B62: AQ32=AS32 | C62: Behoefte arbeid = aanbod arbeid | D62: -75 | E62: 16 | F62: -75 | G62: 2232.715413 | H62: 1e+100
B63: AQ33<=AS33 | C63: Eigen arbeid | D63: 3000 | E63: 5.4900001 | F63: 3000 | G63: 2232.715413 | H63: 3000
B64: AQ34<=AS34 | C64: Benutting mestafzetruimte | D64: 55 | E64: 354.16667 | F64: 55 | G64: 8.319824294 | H64: 5
B65: AQ35<=AS35 | C65: Burenregeling | D65: 5 | E65: 229.16667 | F65: 5 | G65: 8.319824294 | H65: 5

Sheet Data_Resultaat
C1: DATA Routeplanner Melkvee
P2: Aantal melkkoeien | Q2: Aantal extra stalplaatsen melkkoeien | R2: Aantal extra stalplaatsen jongvee | S2: Aantal verkochte stierkalveren | T2: Aantal verkochte vaarskalveren | U2: Aantal jongvee 14 dagen naar eigen opfok | V2: Aantal jongvee 14 dagen bestemd voor externe opfok | W2: Aantal jongvee die vertrekken naar externe opfok | X2: Aantal jongvee die terugkeren uit externe opfok | Y2: GAD tot 1 jaar | Z2: GAD tussen 1 en 2 jaar | AA2: GAD jongvee boven 2 jaar | AB2: GAD elders opgefokt | AC2: Aantal aangekochte vaarzen | AD2: Oppervlakte mais | AE2: Oppervlakte gras | AF2: Oppervlakte mais_derogatie | AG2: Oppervlakte gras_derogatie | AH2: Te pachten grond | AI2: Mestoverschot | AJ2: Aantal reforme koeien | AK2: Aankoop mais | AL2: Aantal aangekochte NERs | AM2: Eigen arbeid | AN2: Externe arbeid | AO2: Oppervlakte burenregeling | AP2: Opervlakte overige mestafzet
C3: Algemene data | G3: Stalplaatsen, grond, mest en NERs | O3: Variabelen | P3: 110 | Q3: 0 | R3: 0 | S3: 44.010577 | T3: 23.484583 | U3: 20.656535 | V3: 9.6495872 | W3: 9.6024114 | X3: 9.4658438 | Y3: 27.957403 | Z3: 19.438442 | AA3: 0 | AB3: 12.71217 | AC3: 0 | AD3: 30.579357 | AE3: 0 | AF3: 0 | AG3: 19.420643 | AH3: 0 | AI3: 294.66044 | AJ3: 29.7 | AK3: 0 | AL3: 0 | AM3: 3000 | AN3: 2232.7154 | AO3: 5 | AP3: 5 | AS3: Doelfunctie
C4: Melkprijs | D4: 34 | E4: €/100 L | G4: Totaal aantal stalplaatsen (melkkoeien of jongvee) beschikbaar op het bedrijf | H4: 170 | I4: aantal | O4: Bijdrage van de variabele aan de doelfunctie | P4: =(Melkprijs/100-Variabele_kosten_melkkoeien_per_100liter_melk/100)*Melkproductie_per_koe -> 1870 | Q4: =-(Investering_stalplaatsen__kosten_per_stalplaats/Afschrijvingstermijn_investering_stalplaatsen*1.03)-(Is_er_een_nieuwe_melkinstallatie_nodig_indien_uw_bedrijf_zou_uitbreiden?*Investering_melkinstallatie__kosten_per_melkkoe/Afschrijvingstermijn_investering_melkinstallatie*1.03)-(Zijn_er_overige_investeringen_nodig_indien_uw_bedrijf_zou_uitbreiden?*Overige_investeringskosten_per_koe/Afschrijvingstermijn_overige_investeringen*1.03) -> -457.7777778 | R4: =-(Investering_stalplaatsen_jongvee__kosten_per_stalplaats/Afschrijvingstermijn_investering_stalplaatsen*1.03)-(Zijn_er_overige_investeringen_nodig_indien_uw_bedrijf_zou_uitbreiden?*Overige_investeringskosten_per_koe/Afschrijvingstermijn_overige_investeringen*1.03) -> -143.0555556 | S4: =Prijs_per_stierkalf -> 100 | T4: =Prijs_per_vaarskalf -> 100 | U4: 0 | V4: 0 | W4: 0 | X4: 0 | Y4: =-Kost_per_GAD -> -225 | Z4: =-Kost_per_GAD -> -225 | AA4: =-Kost_per_GAD -> -225 | AB4: =-Prijs_externe_opfok*12 -> -660 | AC4: =-Prijs_aangekochte_vaars -> -1400 | AD4: =-Teeltkost_mais -> -1000 | AE4: =-Teeltkost_gras -> -790 | AF4: =-Variabele_teeltkosten_snede_gras_voor_mais-Teeltkost_mais -> -1400 | AG4: =-Teeltkost_gras -> -790 | AH4: =-P_Pacht_grond -> -1000 | AI4: =-Prijs_mestafzet -> -10 | AJ4: =Prijs_per_reforme_melkkoe -> 700 | AK4: =-Aankoopprijs_mais-350 -> -1700 | AL4: =-Prijs_per_NER/5*1.03 -> -0.8034 | AM4: =-Loonkost_eigen_arbeid*Binair_arbeid -> -10.51 | AN4: =-Loonkost_externe_arbeid*Binair_arbeid-0.0000001 -> -16.0000001 | AO4: =-Prijs_voor_mestafzet_in_burenregeling -> -125 | AP4: 0 | AS4: =SUMPRODUCT(P3:AO3,P4:AO4) -> 97438.70268
C5: Melkproductie per koe | D5: 8500 | E5: L/melkkoe/jaar | G5: Waarvan x aantal stalplaatsen enkel voor jongvee kunnen worden gebruikt | H5: 60 | I5: aantal
C6: Variabele kosten voor melkkoeien per 100 liter melk | D6: 12 | E6: €/100 L | G6: Maximaal aantal bijkomende stalplaatsen die u wenst bij uitbreiding | H6: 100 | I6: aantal
G7: Voorteelt gras voor maïs zonder derogatie voor afzet rundermengmest | H7: 0 | I7: ha | N7: Aantal dieren en stalplaatsen | O7: Aantal melkkoeien | P7: -1 | AQ7: =SUMPRODUCT($P$3:$AP$3,P7:AP7) -> -110 | AR7: <= | AS7: =-P_Minimaal_aantal_melkkoeien -> 0
C8: Tussenkalftijd | D8: 390 | E8: dagen | G8: Voorteelt gras voor maïs voor afzet varkensmest | H8: 0 | I8: ha | O8: Stalplaatsen melkkoeien | P8: 1 | Q8: -1 | AQ8: =SUMPRODUCT($P$3:$AP$3,P8:AP8) -> 110 | AR8: <= | AS8: =P_Huidig_aantal_stalplaatsen-P_stalplaatsen_jongvee -> 110
C9: Percentage melktype vaarskalveren | D9: 55 | E9: % | G9: Oppervlakte beschikbaar voor tijdelijk grasland en maïs | H9: 50 | I9: ha | O9: Stalplaatsen jongvee | R9: -1 | Y9: 1 | Z9: 1 | AA9: 1 | AQ9: 47.395845 | AR9: <= | AS9: =P_Huidig_aantal_stalplaatsen -> 170
C10: Sterftepercentage kalveren tot 14 dagen | D10: 5 | E10: % | G10: Variabele teeltkosten gras | H10: 790 | I10: euro/ha/jaar | O10: Totaal aantal koeien < Totaal aantal stalplaatsen | P10: 1 | Q10: -1 | R10: -1 | Y10: 1 | Z10: 1 | AA10: 1 | AQ10: 157.395845 | AR10: <= | AS10: =P_Huidig_aantal_stalplaatsen -> 170
C11: Sterftepercentage jongvee vanaf 14 dagen tot afkalfleeftijd | D11: 2 | E11: % | G11: Variabele teeltkosten mais | H11: 1000 | I11: euro/ha/jaar | O11: Maximaal aantal extra stalplaatsen | Q11: 1 | R11: 1 | AQ11: 0 | AR11: <= | AS11: =Maximaal_aantal_bijkomende_stalplaatsen_die_u_wenst_bij_uitbreiding -> 100
C12: Verblijftijd stierkalveren die worden verkocht | D12: 14 | E12: dagen | G12: Pachtprijs grond | H12: 1000 | I12: euro/ha/jaar | N12: Jongvee tot 1 jaar | O12: Aantal stierkalveren | P12: =-(365/Tussenkalftijd)*(1-Percentage_vaarskalveren/100)*(1-Sterftepercentage_kalveren_tot_14_dagen/100) -> -0.4000961538 | S12: 1 | AQ12: 7.692308657e-08 | AR12: = | AS12: 0
C13: Verblijftijd vaarskalveren die worden verkocht | D13: 14 | E13: dagen | G13: Maximale oppervlakte grond die kan worden gepacht | H13: 30 | I13: ha | O13: Aantal vaarskalveren | P13: =-(365/Tussenkalftijd)*(Percentage_vaarskalveren/100)*(1-Sterftepercentage_kalveren_tot_14_dagen/100) -> -0.4890064103 | T13: 1 | U13: 1 | V13: 1 | AQ13: 7.179486872e-08 | AR13: = | AS13: 0
C14: Leeftijd jongvee bij vertrek naar opfok elders | D14: 6 | E14: maanden | G14: Opbrengst gras (droge stof) | H14: 10 | I14: ton DS/ha/jaar | O14: Transferrij jongvee externe opfok | V14: =1-((Uitvalpercentage_tot_afkalfleeftijd/100)/(Afkalfleeftijd-0.5)*(Leeftijd_jongvee_naar_opfok_elders-0.5)) -> 0.9951111111 | W14: -1 | AQ14: 4.035555534e-08 | AR14: <= | AS14: 0
C15: Afkalfleeftijd | D15: 23 | E15: maanden | G15: Opbrengst maïs (droge stof) | H15: 15 | I15: ton DS/ha/jaar | O15: Transferrij 2 jongvee externe opfok | W15: =(1-(Uitvalpercentage_tot_afkalfleeftijd/100)/(Afkalfleeftijd-0.5)*(Afkalfleeftijd-1-Leeftijd_jongvee_naar_opfok_elders)) -> 0.9857777778 | X15: -1 | AQ15: -2.880000061e-08 | AR15: <= | AS15: 0
C16: Variabele kosten per gemiddeld aanwezig stuk jongvee | D16: 225 | E16: €/GAD1/jaar | G16: Aankoopprijs maïs op stam per ha (excl. hakselen) | H16: 1350 | I16: euro/ha | O16: Gemiddeld aanwezige dieren tot 1 jaar | S16: =Verblijftijd_stierkalveren/365 -> 0.03835616438 | T16: =Verblijftijd_vaarskalveren/365 -> 0.03835616438 | U16: =1 - (((Uitvalpercentage_tot_afkalfleeftijd/100)/(Afkalfleeftijd-0.5)*11.5)*(5.5/11.5)) -> 0.9951111111 | V16: =IF(Leeftijd_jongvee_naar_opfok_elders<=12,(1-(Uitvalpercentage_tot_afkalfleeftijd/100)/(Afkalfleeftijd-0.5)*(Leeftijd_jongvee_naar_opfok_elders-0.5))*Leeftijd_jongvee_naar_opfok_elders/12+(Uitvalpercentage_tot_afkalfleeftijd/100)/(Afkalfleeftijd-0.5)*(Leeftijd_jongvee_naar_opfok_elders-0.5)*Leeftijd_jongvee_naar_opfok_elders/12/2,(1-(Uitvalpercentage_tot_afkalfleeftijd/100)/(Afkalfleeftijd-0.5)*(12-0.5))*12/12+(Uitvalpercentage_tot_afkalfleeftijd/100)/(Afkalfleeftijd-0.5)*(12-0.5)*12/12/2) -> 0.4987777778 | Y16: -1 | AQ16: -3.923007625e-07 | AR16: <= | AS16: 0
G17: Maximale hoeveelheid maïs op stam die kan worden aangekocht | H17: 30 | I17: ha/jaar | N17: Jongvee tot 2 jaar | O17: Gemiddeld aanwezige dieren tussen 1 en 2j | U17: =IF(Afkalfleeftijd<=24,(1-(Uitvalpercentage_tot_afkalfleeftijd/100)/(Afkalfleeftijd-0.5)*(12-0.5))*((Uitvalpercentage_tot_afkalfleeftijd/100)/(Afkalfleeftijd-0.5)*(Afkalfleeftijd-12)*(Afkalfleeftijd-12)/12/2+(1-(Uitvalpercentage_tot_afkalfleeftijd/100)/(Afkalfleeftijd-0.5)*(Afkalfleeftijd-12))*(Afkalfleeftijd-12)/12),(1-(Uitvalpercentage_tot_afkalfleeftijd/100)/(Afkalfleeftijd-0.5)*(12-0.5))*((Uitvalpercentage_tot_afkalfleeftijd/100)/(Afkalfleeftijd-0.5)*(Afkalfleeftijd-12)*6/12+(1-(Uitvalpercentage_tot_afkalfleeftijd/100)/(Afkalfleeftijd-0.5)*(Afkalfleeftijd-12)))) -> 0.9028606255 | W17: =IF(Leeftijd_jongvee_naar_opfok_elders>12,(Leeftijd_jongvee_naar_opfok_elders-12)/12,0) -> 0 | X17: =IF(Afkalfleeftijd-1>23,0,(1-(Uitvalpercentage_tot_afkalfleeftijd/100)/(Afkalfleeftijd-0.5))*1/12+(Uitvalpercentage_tot_afkalfleeftijd/100)/(Afkalfleeftijd-0.5)*1/12/2) -> 0.0832962963 | Z17: -1 | AQ17: -1.590805709e-07 | AR17: <= | AS17: 0
C18: Prijs per reforme melkkoe | D18: 700 | E18: €/koe | G18: Oppervlakte voor mestafzet in burenregeling | H18: 5 | I18: ha | N18: Jongvee boven 2 jaar | O18: Gemiddeld aanwezige dieren boven 2j | U18: =IF(Afkalfleeftijd>24,(1-(Uitvalpercentage_tot_afkalfleeftijd/100)/(Afkalfleeftijd-0.5)*(24-0.5))*((Uitvalpercentage_tot_afkalfleeftijd/100)/(Afkalfleeftijd-0.5)*(Afkalfleeftijd-24)*(Afkalfleeftijd-24)/12/2+(1-(Uitvalpercentage_tot_afkalfleeftijd/100)/(Afkalfleeftijd-0.5)*(Afkalfleeftijd-24))*(Afkalfleeftijd-24)/12),0) -> 0 | X18: =IF(Afkalfleeftijd-1>23,(1-(Uitvalpercentage_tot_afkalfleeftijd/100)/(Afkalfleeftijd-0.5))*1/12+(Uitvalpercentage_tot_afkalfleeftijd/100)/(Afkalfleeftijd-0.5)*1/12/2,0) -> 0 | AA18: -1 | AQ18: 0 | AR18: <= | AS18: 0
C19: Prijs verkoop stierkalf | D19: 100 | E19: €/kalf | G19: Prijs voor mestafzet in burenregeling | H19: 125 | I19: euro/ha | N19: Extern jongvee | O19: Gemiddeld aanwezige dieren externe opfok | W19: =(1-(Uitvalpercentage_tot_afkalfleeftijd/100)/(Afkalfleeftijd-0.5)*(Afkalfleeftijd-1-Leeftijd_jongvee_naar_opfok_elders))*(Afkalfleeftijd-1-Leeftijd_jongvee_naar_opfok_elders)/12+(Uitvalpercentage_tot_afkalfleeftijd/100)/(Afkalfleeftijd-0.5)*(Afkalfleeftijd-1-Leeftijd_jongvee_naar_opfok_elders)*(Afkalfleeftijd-1-Leeftijd_jongvee_naar_opfok_elders)/12/2 -> 1.323851852 | AB19: -1 | AQ19: 1.141333321e-07 | AR19: <= | AS19: 0
C20: Prijs verkoop vaarskalf | D20: 100 | E20: €/kalf | G20: Prijs per ton externe mestafzet (gemiddelde lange afstandstransport en verwerking) | H20: 10 | I20: euro/ton mest | O20: Maximaal aantal externe opfok | W20: 1 | AQ20: 9.6024114 | AR20: <= | AS20: =P_Maximaal_aantal_jongvee_externe_opfok -> 100
C21: Prijs externe opfok per gemiddeld aanwezig stuk jongvee | D21: 55 | E21: €/maand | G21: Beschikbare oppervlakte voor mestafzet van melkvee en jongvee | H21: 60 | I21: ha | O21: Minimaal aantal externe opfok | W21: -1 | AQ21: -9.6024114 | AR21: <= | AS21: =-P_Minimaal_aantal_jongvee_externe_opfok -> 0
C22: Prijs aangekochte vaars | D22: 1400 | E22: €/vaars | G22: Oppervlakte blijvend grasland | H22: 5 | I22: ha | O22: Minimaal aantal eigen opfok | U22: -1 | AQ22: -20.656535 | AR22: <= | AS22: =-P_Minimaal_aantal_jongvee_eigen_opfok -> 0
G23: Kunt u mest afzetten op maïs op stam die u zou aankopen? | H23: 0 | I23: 0=neen, 1=ja | N23: Veebeweging | O23: Aantal melkkoeien contstant houden | P23: =Vervangingspercentage_oude_dieren/100 -> 0.27 | U23: =-(1-Uitvalpercentage_tot_afkalfleeftijd/100) -> -0.98 | V23: =-(1-Uitvalpercentage_tot_afkalfleeftijd/100) -> -0.98 | AC23: -1 | AQ23: 2.440000024e-07 | AR23: <= | AS23: 0
C24: Vervangingspercentage | D24: 27 | E24: % | G24: Aantal beschikbare NERs | H24: 17500 | I24: aantal | O24: Verkoop reforme melkkoeien | P24: =-Vervangingspercentage_oude_dieren/100 -> -0.27 | AJ24: 1 | AQ24: -3.552713679e-15 | AR24: <= | AS24: 0
G25: Prijs per NER | H25: 3.9 | I25: euro | N25: Grond | O25: Droge stof gras | P25: =(Dagelijkse_opname_voordroogkuil_per_melkkoe_in_lactatie*Lactatieduur+Dagelijkse_opname_voordroogkuil_per_melkkoe_in_droogstand*(Tussenkalftijd-Lactatieduur))/Tussenkalftijd*365*1.1 -> 1877.784615 | Y25: =(1-Houdt_u_het_jongvee___1_jaar_op_krachtvoeder_en_stro?)*P25*0.3 -> 563.3353846 | Z25: =(1-Houdt_u_het_jongvee_tussen_1_en_2_jaar_op_krachtvoeder_en_stro?)*P25*0.6 -> 1126.670769 | AA25: =P25*1 -> 1877.784615 | AE25: =-Opbrengst_gras__droge_stof*1000 -> -10000 | AF25: =-Opbrengst_snede_gras_voor_mais__droge_stof*1000*Mogelijkheid_tot_derogatie__op_grasland_en_of_maïs_voorafgegaan_door_snede_gras -> -2500 | AG25: =-Opbrengst_gras__droge_stof*1000*Mogelijkheid_tot_derogatie__op_grasland_en_of_maïs_voorafgegaan_door_snede_gras -> -10000 | AQ25: 49999.99646 | AR25: <= | AS25: =Oppervlakte_blijvend_grasland*Opbrengst_gras__droge_stof*1000+(Oppervlakte_gras_voor_maïs_gecombineerd_voor_rundermest_zonder_derogatie+Oppervlakte_gras_voor_maïs_gecombineerd_voor_varkensmest)*Opbrengst_snede_gras_voor_mais__droge_stof*1000 -> 50000
C26: Optioneel in te vullen data (indien geen specifieke voorkeur, kies voorbeeldwaarden) | G26: Lasten en investeringen bij uitbreiding | O26: Droge stof mais | P26: =(Dagelijkse_opname_mais_per_melkkoe_in_lactatie*Lactatieduur+Dagelijkse_opname_mais_per_melkkoe_in_droogstand*(Tussenkalftijd-Lactatieduur))/Tussenkalftijd*365*1.1 -> 3527.023077 | Y26: =(1-Houdt_u_het_jongvee___1_jaar_op_krachtvoeder_en_stro?)*P26*0.3 -> 1058.106923 | Z26: =(1-Houdt_u_het_jongvee_tussen_1_en_2_jaar_op_krachtvoeder_en_stro?)*P26*0.6 -> 2116.213846 | AA26: =P26*1 -> 3527.023077 | AD26: =-Opbrengst_mais*1000 -> -15000 | AF26: =-Opbrengst_mais_na_snede_gras__droge_stof*1000*Mogelijkheid_tot_derogatie__op_grasland_en_of_maïs_voorafgegaan_door_snede_gras -> -14000 | AK26: =-Opbrengst_mais*1000 -> -15000 | AQ26: 0.005235148477 | AR26: <= | AS26: =(Oppervlakte_gras_voor_maïs_gecombineerd_voor_rundermest_zonder_derogatie+Oppervlakte_gras_voor_maïs_gecombineerd_voor_varkensmest)*Opbrengst_mais_na_snede_gras__droge_stof*1000 -> 0
C27: Minimaal aantal vaarskalveren die jaarlijks vertrekken naar externe opfok | D27: 0 | E27: aantal | G27: Investering stalplaatsen jongvee: kosten per stalplaats | H27: 2000 | I27: euro/stalplaats | O27: Te pachten oppervlakte | AD27: 1 | AE27: 1 | AF27: =1*Mogelijkheid_tot_derogatie__op_grasland_en_of_maïs_voorafgegaan_door_snede_gras -> 1 | AG27: =1*Mogelijkheid_tot_derogatie__op_grasland_en_of_maïs_voorafgegaan_door_snede_gras -> 1 | AH27: -1 | AQ27: 50 | AR27: <= | AS27: =P_Oppervlakte_eigen_grond -> 50
C28: Maximaal aantal vaarskalveren die jaarlijks vertrekken naar externe opfok | D28: 100 | E28: aantal | G28: Investering stalplaatsen melkkoeien: kosten per stalplaats | H28: 4500 | I28: euro/stalplaats | O28: Maximale aankoop mais | AK28: 1 | AQ28: 0 | AR28: <= | AS28: =Maximale_hoeveelheid_aankoop_mais -> 30
C29: Minimaal aantal vaarskalveren die jaarlijks in eigen opfok gaan | D29: 0 | E29: aantal | G29: Afschrijvingstermijn investering stalplaatsen | H29: 18 | I29: jaren | O29: Maximale gepachte oppervlakte | AH29: 1 | AQ29: 0 | AR29: <= | AS29: =Maximale_oppervlakte_grond_die_kan_worden_gepacht -> 30
C30: Minimaal aantal melkkoeien | D30: 0 | E30: aantal | G30: Is er een nieuwe melkinstallatie nodig indien uw bedrijf zou uitbreiden? | H30: 1 | I30: 0=neen, 1=ja | N30: Mest | O30: N-overschot | P30: =127*0.9 -> 114.3 | Y30: =33*0.9 -> 29.7 | Z30: =58*0.9 -> 52.2 | AA30: =77*0.9 -> 69.3 | AD30: =-170 -> -170 | AE30: =-170 -> -170 | AF30: =-250*Mogelijkheid_tot_derogatie__op_grasland_en_of_maïs_voorafgegaan_door_snede_gras -> -250 | AG30: =-250*Mogelijkheid_tot_derogatie__op_grasland_en_of_maïs_voorafgegaan_door_snede_gras -> -250 | AI30: =-1*4.8 -> -4.8 | AK30: =-Kunt_u_mest_afzetten_op_maïs_op_stam_die_u_zou_aankopen?*170 -> 0 | AO30: -170 | AP30: -170 | AQ30: 1249.999989 | AR30: <= | AS30: =Oppervlakte_blijvend_grasland*Mogelijkheid_tot_derogatie__op_grasland_en_of_maïs_voorafgegaan_door_snede_gras*250+Oppervlakte_blijvend_grasland*(1-Mogelijkheid_tot_derogatie__op_grasland_en_of_maïs_voorafgegaan_door_snede_gras)*170+Oppervlakte_gras_voor_maïs_gecombineerd_voor_rundermest_zonder_derogatie*170 -> 1250
G31: Investering melkinstallatie: kosten per melkkoe | H31: 3000 | I31: euro/melkkoe | N31: NER | O31: Aankoop NERs | P31: 127 | Y31: 43 | Z31: 73 | AA31: 106.5 | AL31: -1 | AQ31: 16591.1746 | AR31: <= | AS31: =Aantal_beschikbare_NERs -> 17500
C32: Derogatie | G32: Afschrijvingstermijn investering melkinstallatie | H32: 18 | I32: jaren | N32: Arbeid | O32: Behoefte arbeid = aanbod arbeid | P32: =39-Bin_Beschikt_u_over_een_melkrobot?*0.3*39 -> 39 | Y32: 7 | Z32: 7 | AA32: 7 | AD32: 8 | AE32: 15 | AF32: 13 | AG32: 15 | AM32: -1 | AN32: -1 | AQ32: -74.999984 | AR32: = | AS32: =-(Oppervlakte_gras_voor_maïs_gecombineerd_voor_rundermest_zonder_derogatie+Oppervlakte_gras_voor_maïs_gecombineerd_voor_varkensmest)*13-Oppervlakte_blijvend_grasland*15 -> -75
C33: Wenst u dat het model rekening houdt met de mogelijkheid tot derogatie (op grasland en/of maïs voorafgegaan door snede gras) | D33: 1 | E33: 0=neen, 1=ja | G33: Zijn er overige investeringen nodig indien uw bedrijf zou uitbreiden? | H33: 1 | I33: 0=neen, 1=ja | O33: Eigen arbeid | AM33: 1 | AQ33: 3000 | AR33: <= | AS33: =Beschikbare_eigen_arbeid -> 3000
C34: Opbrengst snede gras voor mais (droge stof) | D34: 2.5 | E34: ton DS/ha/jaar | G34: Overige investeringskosten per koe | H34: 500 | I34: euro/koe | N34: Mestafzetruimte | O34: Benutting mestafzetruimte | AD34: 1 | AE34: 1 | AF34: 1 | AG34: 1 | AH34: -1 | AP34: 1 | AQ34: 55 | AR34: <= | AS34: =Beschikbare_oppervlakte_voor_mestafzet-Oppervlakte_blijvend_grasland-Oppervlakte_gras_voor_maïs_gecombineerd_voor_rundermest_zonder_derogatie -> 55
C35: Opbrengst mais na snede gras (droge stof) | D35: 14 | E35: ton DS/ha/jaar | G35: Afschrijvingstermijn overige investeringen | H35: 18 | I35: jaren | O35: Burenregeling | AO35: 1 | AQ35: 5 | AR35: <= | AS35: =Oppervlakte_voor_mestafzet_in_burenregeling -> 5
C36: Variabele teeltkosten snede gras voor mais | D36: 400 | E36: euro/ha/jaar
G37: Rantsoen
C38: Arbeid | G38: Dagelijkse opname mais per melkkoe in lactatie | H38: 9 | I38: kg DS/melkkoe/dag
C39: Wenst u dat het model rekening houdt met kosten voor eigen en externe arbeid? | D39: 1 | E39: 0=neen, 1=ja | G39: Dagelijkse opname voordroogkuil per melkkoe in lactatie | H39: 5 | I39: kg DS/melkkoe/dag
C40: Beschikbare eigen arbeid | D40: 3000 | E40: uren/jaar | G40: Lactatieduur | H40: 348 | I40: dagen
C41: Vergoeding eigen arbeid | D41: 10.51 | E41: euro/uur | G41: Dagelijkse opname mais per melkkoe in droogstand | H41: 7 | I41: kg DS/melkkoe/dag
C42: Vergoeding externe arbeid | D42: 16 | E42: euro/uur | G42: Dagelijkse opname voordroogkuil per melkkoe in droogstand | H42: 2 | I42: kg DS/melkkoe/dag
C43: Beschikt u over een melkrobot? | D43: 0 | E43: 0=neen, 1=ja | G43: Houdt u het jongvee < 1 jaar op krachtvoeder en stro? | H43: 0 | I43: 0=neen, 1=ja
G44: Houdt u het jongvee tussen 1 en 2 jaar op krachtvoeder en stro? | H44: 0 | I44: 0=neen, 1=ja
C45: 1 Gemiddeld aanwezig dier
C46: RESULTAAT Routeplanner Melkvee
C55: Optimale bedrijfssituatie | G55: Economische prestaties in optimale bedrijfssituatie
C56: Aantal melkkoeien | D56: 110 | E56: aantal | G56: Bruto saldo (melkgeld, verkoop kalveren en reforme koeien, variabele kosten voor melkkoeien en jongvee incl. voederkosten, eventuele kosten voor mestafzet, externe opfok jongvee of aankoop vaarzen) | H56: 160742.1493 | I56: euro/bedrijf/jaar
C57: Benutte bestaande stalplaatsen voor melkkoeien | D57: 110 | E57: aantal | H57: 1461.292266 | I57: euro/melkkoe/jaar
C58: Extra stalplaatsen voor melkkoeien door uitbreiding | D58: 0 | E58: aantal | H58: 17.19167372 | I58: euro/100 L
C59: Benutte stalplaatsen voor jongvee | D59: 47.395845 | E59: aantal | G59: Investeringslasten door uitbreiding | H59: 0 | I59: euro/bedrijf/jaar
C60: Extra stalplaatsen voor jongvee door uitbreiding | D60: 0 | E60: aantal | H60: 0 | I60: euro/100 L
C61: Som van aantal verkochte stierkalveren en kruislingvaarskalveren | D61: 44.010577 | E61: aantal/jaar | G61: Betaalde pacht | H61: 0 | I61: euro/bedrijf/jaar
C62: Aantal verkochte melktype vaarskalveren | D62: 23.484583 | E62: aantal/jaar | G62: Aangekochte NERs | H62: 0 | I62: euro/bedrijf/jaar
C63: Aantal vaarskalveren die jaarlijks in eigen opfok gaan | D63: 20.656535 | E63: aantal/jaar | G63: Vergoeding eigen arbeid | H63: 31530 | I63: euro/bedrijf/jaar
C64: Aantal vaarskalveren die jaarlijks vertrekken naar externe opfok | D64: 9.6024114 | E64: aantal/jaar | G64: Vergoeding externe arbeid | H64: 35723.44662 | I64: euro/bedrijf/jaar
C65: Aantal aangekochte vaarzen | D65: 0 | E65: aantal/jaar
C66: Oppervlakte blijvend grasland | D66: 5 | E66: ha | G66: Ingeschatte arbeidsbehoefte
C67: Benutte oppervlakte voor mais zonder derogatie | D67: 30.579357 | E67: ha | G67: Voor melkvee: 39 uren/melkkoe/jaar, i.g.v. melkrobot wordt 30% minder arbeid verondersteld | H67: 4290 | I67: uren/jaar
C68: Benutte oppervlakte voor tijdelijk grasland zonder derogatie | D68: 0 | E68: ha | G68: Voor jongvee: 7 uren/gemiddeld aanwezig dier/jaar | H68: 331.770915 | I68: uren/jaar
C69: Benutte oppervlakte voor mais met derogatie (voorafgegaan door snede gras) | D69: 0 | E69: ha | G69: Voor veldwerk: gras, 15 uren/ha/jaar en mais, 8 uren/ha/jaar | H69: 610.944501 | I69: uren/jaar
C70: Benutte oppervlakte voor tijdelijk grasland met derogatie | D70: 19.420643 | E70: ha | G70: Benodigde externe arbeid | H70: 2232.715416 | I70: uren/jaar
C71: Te pachten grond | D71: 0 | E71: ha | G71: Benodigde externe arbeid (aan 1 VTE = 1976 uren = 38 uren/week * 52 weken) | H71: 1.129916709 | I71: VTE
C72: Mestoverschot rundermengmest voor externe mestafzet (lange afstandstransport en verwerking) | D72: 294.66044 | E72: ton RMM2/jaar
C73: Aantal reforme koeien | D73: 29.7 | E73: aantal/jaar | G73: =IF(D67+D68+D69+D70>=P_Oppervlakte_eigen_grond+D71,"Mogelijk is het interessant om maïs aan te kopen i.p.v. te telen en aardappelen te telen op de vrijgekomen oppervlakte. De som van het bruto saldo van aardappelen en de weggevallen kosten van maïsteelt moet dan groter zijn dan de aankoopkosten van maïs.","") -> Mogelijk is het interessant om maïs aan te kopen i.p.v. te telen en aardappelen te telen op de vrijgekomen oppervlakte. De som van het bruto saldo van aardappelen en de weggevallen kosten van maïsteelt moet dan groter zijn dan de aankoopkosten van maïs.
C74: Aankoop mais op stam | D74: 0 | E74: ha/jaar
C75: Aantal aangekochte NERs | D75: 0 | E75: aantal
C76: Aantal benutte NERs | D76: 16591.1746 | E76: aantal
C77: Benutte oppervlakte voor mestafzet in burenregeling | D77: 5 | E77: ha
C78: Vaste oppervlakte gras voor maïs gecombineerd voor afzet rundermengmest zonder derogatie of voor afzet varkensmest | D78: 0 | E78: ha
C79: Onder- en bovengrens waarbij de oplossing optimaal blijft | D79: Onder | E79: Boven
C80: Melkprijs | D80: 28.83623139 | E80: 34.22185231 | F80: €/100 L
C81: Melkproductie per koe | D81: 6504.907584 | E81: 8585.715665 | F81: L/melkkoe
C82: Prijs externe opfok per gemiddeld aanwezig stuk jongvee | D82: 54.38208018 | E82: 59.57156795 | F82: €/maand
C83: Prijs aangekochte vaars | D83: 1304.743778 | E83: 1e+100 | F83: €/vaars
C84: Pachtprijs grond | D84: 469.4690695 | E84: 1e+100 | F84: euro/ha/jaar
C85: Aankoopprijs maïs op stam per ha (excl. hakselen) | D85: 893.3024036 | E85: 1e+100 | F85: euro/ha
C86: Prijs per ton externe mestafzet (gemiddelde lange afstandstransport en verwerking) | D86: 6.368094814 | E86: 13.13073367 | F86: euro/ton mest
C87: Prijs per NER | D87: 2.102255802e-11 | E87: 4.854368932e+100 | F87: euro
C88: Vergoeding eigen arbeid | D88: -1e+100 | E88: 16.00000014 | F88: euro/uur
C89: Vergoeding externe arbeid | D89: 15.24635834 | E89: 18.55677853 | F89: euro/uur
C90: Variabele kosten voor melkkoeien per 100 liter melk | D90: 11.77814769 | E90: 17.16376861 | F90: €/100 L
C91: 1 Gemiddeld aanwezig dier 2 Rundermengmest
D92: 34 | E92: 170
D93: 8500 | E93: 60
D94: 12 | E94: 100
E95: 0
D96: 390 | E96: 0
D97: 55 | E97: 50
D98: 5 | E98: 790
D99: 2 | E99: 1000
D100: 14 | E100: 1000
D101: 14 | E101: 30
D102: 6 | E102: 10
D103: 23 | E103: 15
D104: 225 | E104: 1350
E105: 30
D106: 700 | E106: 5
D107: 100 | E107: 125
D108: 100 | E108: 10
D109: 55 | E109: 60
D110: 1400 | E110: 5
E111: 0
D112: 27 | E112: 17500
E113: 3.9
D115: 0 | E115: 2000
D116: 100 | E116: 4500
D117: 0 | E117: 18
D118: 0 | E118: 1
E119: 3000
E120: 18
D121: 1 | E121: 1
D122: 2.5 | E122: 500
D123: 14 | E123: 18
D124: 400
C125: Beperkte aansprakelijkheid
C126: De Routeplanner Melkvee rekentool werd door ILVO, Boerenbond, Hooibeekhoeve en Inagro met de meeste zorg en nauwkeurigheid opgesteld. Er wordt evenwel geen enkele garantie gegeven omtrent de juistheid of de volledigheid van de informatie geleverd met deze rekentool. De gebruiker van deze rekentool ziet af van elke klacht tegen de projectpartners, van welke aard ook, met betrekking tot het gebruik van de rekentool en van de via deze rekentool beschikbaar gestelde informatie. In geen geval zullen ILVO, Boerenbond, Hooibeekhoeve en Inagro aansprakelijk kunnen worden gesteld voor eventuele nadelige gevolgen die voortvloeien uit het gebruik van de rekentool en van de via deze rekentool beschikbaar gestelde informatie. | E126: 9
D127: 1 | E127: 5
D128: 3000 | E128: 348
D129: 10.51 | E129: 7
D130: 16 | E130: 2
D131: 0 | E131: 0
E132: 0
C133: Auteursrechten
C134: Alle rechten van intellectuele eigendom betreffende de rekentool Routeplanner Melkvee berusten bij ILVO, Boerenbond, Hooibeekhoeve en Inagro. Kopiëren, verspreiden en elk ander gebruik van de rekentool en achterliggen code is niet toegestaan zonder schriftelijke toestemming van elk van hen.

Sheet Grafieken
A1: 101422.9968 | B1: =A1-$A$27 -> 3984.294158 | C1: 0 | D1: 122.48174 | E1: 1037.3117
A2: 100886.4458 | B2: =A2-$A$27 -> 3447.743118 | C2: 1 | D2: 122.48174 | E2: 536.55104
A3: 100349.8948 | B3: 2911.192078 | C3: 2 | D3: 122.48174 | E3: 536.55104
A4: 99813.34372 | B4: 2374.641038 | C4: 3 | D4: 122.48174 | E4: 536.55104
A5: 99360.12604 | B5: 1921.423358 | C5: 4 | D5: 122.48174 | E5: 359.4677
A6: 99000.65834 | B6: 1561.955658 | C6: 5 | D6: 122.48174 | E6: 359.4677
A7: 98641.19064 | B7: 1202.487958 | C7: 6 | D7: 122.48174 | E7: 359.4677
A8: 98322.684 | B8: 883.98132 | C8: 7 | D8: 110 | E8: 294.66044
A9: 98028.02356 | B9: 589.32088 | C9: 8 | D9: 110 | E9: 294.66044
A10: 97733.36312 | B10: 294.66044 | C10: 9 | D10: 110 | E10: 294.66044
A11: 97438.70268 | B11: 0 | C11: 10 | D11: 110 | E11: 294.66044
A12: 97144.04224 | B12: -294.66044 | C12: 11 | D12: 110 | E12: 294.66044
A13: 96849.3818 | B13: -589.32088 | C13: 12 | D13: 110 | E13: 294.66044
A14: 96554.72136 | B14: -883.98132 | C14: 13 | D14: 110 | E14: 294.66044
A15: 96439.49699 | B15: -999.2056887 | C15: 14 | D15: 110 | E15: 88.237081
A16: 96351.25991 | B16: -1087.44277 | C16: 15 | D16: 110 | E16: 88.237081
A17: 96263.02283 | B17: -1175.679851 | C17: 16 | D17: 110 | E17: 88.237081
A18: 96174.78575 | B18: -1263.916932 | C18: 17 | D18: 110 | E18: 88.237081
A19: 96086.54867 | B19: -1352.154013 | C19: 18 | D19: 110 | E19: 88.237081
A20: 95998.31159 | B20: -1440.391094 | C20: 19 | D20: 110 | E20: 88.237081
A21: 95910.07451 | B21: -1528.628175 | C21: 20 | D21: 110 | E21: 88.237081
A22: 95821.83743 | B22: -1616.865256 | C22: 21 | D22: 110 | E22: 88.237081
A23: 95733.60035 | B23: -1705.102337 | C23: 22 | D23: 110 | E23: 88.237081
A24: 95645.36326 | B24: -1793.339418 | C24: 23 | D24: 110 | E24: 88.237081
A25: 95573.36295 | B25: -1865.339736 | C25: 24 | D25: 110 | E25: 0
A26: 95573.36295 | B26: -1865.339736 | C26: 25 | D26: 110 | E26: 0
A27: 97438.70268
A30: 106113.2028 | B30: =A30-$A$56 -> 8674.500162 | C30: 0 | D30: 143.05227 | E30: 30
A31: 104613.2028 | B31: =A31-$A$56 -> 7174.500162 | C31: 50 | D31: 143.05227 | E31: 30
A32: 103113.2028 | B32: 5674.500162 | C32: 100 | D32: 143.05227 | E32: 30
A33: 101613.2028 | B33: 4174.500162 | C33: 150 | D33: 143.05227 | E33: 30
A34: 100113.2028 | B34: 2674.500162 | C34: 200 | D34: 143.05227 | E34: 30
A35: 98979.15765 | B35: 1540.454971 | C35: 250 | D35: 111.05576 | E35: 11.625478
A36: 98397.88375 | B36: 959.1810714 | C36: 300 | D36: 111.05576 | E36: 11.625478
A37: 97816.60985 | B37: 377.9071714 | C37: 350 | D37: 111.05576 | E37: 11.625478
A38: 97629.29401 | B38: 190.5913314 | C38: 400 | D38: 111.05576 | E38: 3.0300301
A39: 97489.24062 | B39: 50.53793949 | C39: 450 | D39: 110 | E39: 2.5958381
A40: 97438.70268 | B40: 0 | C40: 500 | D40: 110 | E40: 0
A41: 97438.70268 | B41: 0 | C41: 550 | D41: 110 | E41: 0
A42: 97438.70268 | B42: 0 | C42: 600 | D42: 110 | E42: 0
A43: 97438.70268 | B43: 0 | C43: 650 | D43: 110 | E43: 0
A44: 97438.70268 | B44: 0 | C44: 700 | D44: 110 | E44: 0
A45: 97438.70268 | B45: 0 | C45: 750 | D45: 110 | E45: 0
A46: 97438.70268 | B46: 0 | C46: 800 | D46: 110 | E46: 0
A47: 97438.70268 | B47: 0 | C47: 850 | D47: 110 | E47: 0
A48: 97438.70268 | B48: 0 | C48: 900 | D48: 110 | E48: 0
A49: 97438.70268 | B49: 0 | C49: 950 | D49: 110 | E49: 0
A50: 97438.70268 | B50: 0 | C50: 1000 | D50: 110 | E50: 0
A51: 97438.70268 | B51: 0 | C51: 1050 | D51: 110 | E51: 0
A52: 97438.70268 | B52: 0 | C52: 1100 | D52: 110 | E52: 0
A53: 97438.70268 | B53: 0 | C53: 1150 | D53: 110 | E53: 0
A54: 97438.70268 | B54: 0 | C54: 1200 | D54: 110 | E54: 0
A56: =A27 -> 97438.70268 | H56: 0
H57: 0
H58: 0
A60: 97701.50894 | B60: =A60-$A$94 -> 262.8062588 | C60: 800 | D60: 111.05576 | E60: 3.0300301 | H60: 0
A61: 97551.10795 | B61: =A61-$A$94 -> 112.4052666 | C61: 850 | D61: 110 | E61: 2.5958381 | H61: 0
A62: 97438.70268 | B62: 0 | C62: 900 | D62: 110 | E62: 0 | H62: 0
A63: 97438.70268 | B63: 0 | C63: 950 | D63: 110 | E63: 0 | H63: NVT
A64: 97438.70268 | B64: 0 | C64: 1000 | D64: 110 | E64: 0 | H64: NVT
A65: 97438.70268 | B65: 0 | C65: 1050 | D65: 110 | E65: 0
A66: 97438.70268 | B66: 0 | C66: 1100 | D66: 110 | E66: 0
A67: 97438.70268 | B67: 0 | C67: 1150 | D67: 110 | E67: 0
A68: 97438.70268 | B68: 0 | C68: 1200 | D68: 110 | E68: 0
A69: 97438.70268 | B69: 0 | C69: 1250 | D69: 110 | E69: 0
A70: 97438.70268 | B70: 0 | C70: 1300 | D70: 110 | E70: 0
A71: 97438.70268 | B71: 0 | C71: 1350 | D71: 110 | E71: 0
A72: 97438.70268 | B72: 0 | C72: 1400 | D72: 110 | E72: 0
A73: 97438.70268 | B73: 0 | C73: 1450 | D73: 110 | E73: 0
A74: 97438.70268 | B74: 0 | C74: 1500 | D74: 110 | E74: 0
A75: 97438.70268 | B75: 0 | C75: 1550 | D75: 110 | E75: 0
A76: 97438.70268 | B76: 0 | C76: 1600 | D76: 110 | E76: 0
A77: 97438.70268 | B77: 0 | C77: 1650 | D77: 110 | E77: 0
A78: 97438.70268 | B78: 0 | C78: 1700 | D78: 110 | E78: 0
A79: 97438.70268 | B79: 0 | C79: 1750 | D79: 110 | E79: 0
A80: 97438.70268 | B80: 0 | C80: 1800 | D80: 110 | E80: 0
A81: 97438.70268 | B81: 0 | C81: 1850 | D81: 110 | E81: 0
A82: 97438.70268 | B82: 0 | C82: 1900 | D82: 110 | E82: 0
A83: 97438.70268 | B83: 0 | C83: 1950 | D83: 110 | E83: 0
A84: 97438.70268 | B84: 0 | C84: 2000 | D84: 110 | E84: 0
A85: 97438.70268 | B85: 0 | C85: 2050 | D85: 110 | E85: 0
A86: 97438.70268 | B86: 0 | C86: 2100 | D86: 110 | E86: 0
A87: 97438.70268 | B87: 0 | C87: 2150 | D87: 110 | E87: 0
A88: 97438.70268 | B88: 0 | C88: 2200 | D88: 110 | E88: 0
A89: 97438.70268 | B89: 0 | C89: 2250 | D89: 110 | E89: 0
A90: 97438.70268 | B90: 0 | C90: 2300 | D90: 110 | E90: 0
A91: 97438.70268 | B91: 0 | C91: 2350 | D91: 110 | E91: 0
A92: 97438.70268 | B92: 0 | C92: 2400 | D92: 110 | E92: 0
A94: =A27 -> 97438.70268
A100: 19134.11421 | B100: =A100-$A$122 -> -78304.58847 | C100: 25 | D100: 61.673115
A101: 25987.80252 | B101: =A101-$A$122 -> -71450.90016 | C101: 26 | D101: 86.793523
A102: 33819.02132 | B102: -63619.68136 | C102: 27 | D102: 94.026316
A103: 41811.25818 | B103: -55627.4445 | C103: 28 | D103: 94.026316
A104: 50688.70268 | B104: -46750 | C104: 29 | D104: 110
A105: 60038.70268 | B105: -37400 | C105: 30 | D105: 110
A106: 69388.70268 | B106: -28050 | C106: 31 | D106: 110
A107: 78738.70268 | B107: -18700 | C107: 32 | D107: 110
A108: 88088.70268 | B108: -9350 | C108: 33 | D108: 110
A109: 97438.70268 | B109: 0 | C109: 34 | D109: 110
A110: 107614.2677 | B110: 10175.56506 | C110: 35 | D110: 122.48174
A111: 118025.2156 | B111: 20586.51296 | C111: 36 | D111: 122.48174
A112: 128641.4429 | B112: 31202.74023 | C112: 37 | D112: 129.08996
A113: 140044.6319 | B113: 42605.92922 | C113: 38 | D113: 189.28997
A114: 157356.1067 | B114: 59917.40404 | C114: 39 | D114: 210
A115: 175206.1067 | B115: 77767.40404 | C115: 40 | D115: 210
A116: 193056.1067 | B116: 95617.40404 | C116: 41 | D116: 210
A117: 210906.1067 | B117: 113467.404 | C117: 42 | D117: 210
A118: 228756.1067 | B118: 131317.404 | C118: 43 | D118: 210
A119: 246606.1067 | B119: 149167.404 | C119: 44 | D119: 210
A120: 264456.1067 | B120: 167017.404 | C120: 45 | D120: 210
A122: =A27 -> 97438.70268
